Cogmind - Beta 15 @@@ ROGUE MODE // 2025.10.18 @ 08:13:11 Player: beans Result: Destroyed by G-47 Trooper with Particle Gun Performance ------------- Evolutions (3) 1500 Regions Visited (10) 2000 Robots Destroyed (113) 565 Value Destroyed (4965) 4965 Prototype IDs (29) 580 Alien Tech Used (0) 0 Bonus (2407) 2407 TOTAL SCORE: 12017 Bonus ------- High Alert Combat Kills 1308 Follower Combat Kills 563 Entered Garrisons 200 Used RIF Installer 500 Aligned with FarCom 300 Friendly Fire -464 Cogmind --------- Core Integrity 0/700 Matter 84/300 Energy 99/100 System Corruption 5% Temperature Cool (88) Movement Core (50) Location -7/Factory Parts ------- > --- POWER (2) -------- (None) > --- PROPULSION (3) --- (None) > --- UTILITY (6) ------ Improved Heat Sink (fused) Relay Coupler [Grunt] (25) Relay Coupler [Hunter] (19) > --- WEAPON (2) ------- (None) > --- INVENTORY (5) ---- Light Angular Momentum Engine Improved Heavy Treads Improved Heavy Treads Peak State ------------ > --- POWER ------------ Backup Power III Antimatter Reactor > --- PROPULSION ------- VSS Leg VSS Leg > --- UTILITY ---------- Advanced Heat Sink Experimental Sensor Array Advanced Recoil Stabilizer Precision Energy Filter Weapon Cycler Weapon Cycler > --- WEAPON ----------- YOLO Cannon > --- INVENTORY -------- Phase Gun Assault Cannon Assault Cannon Hardcell Cannon Heavy Proton Missile Launcher [Rating: 73] Favorites ----------- Power Antimatter Reactor Engine Improved Deuterium Engine Power Core Light Nuclear Core Reactor Antimatter Reactor Propulsion VSS Leg Treads Improved Heavy Treads Leg VSS Leg Flight Unit Flight Unit Utility Weapon Cycler Device Weapon Cycler Hackware Relay Coupler [Hunter] Weapon YOLO Cannon Energy Gun Gatling Laser Energy Cannon YOLO Cannon Ballistic Gun Light Assault Rifle Ballistic Cannon Assault Cannon Launcher Rocket Array Build | -11 -10 -10 -10 -9 -8 -7 -7 -7 -7 -7 ------- Run | Yrd Mat Min Exi Min Mat Fac Was Fac Gar Fac Slots Evolved 6 | . . . . . 4 2 . . . . Power 1 | . . . . . 1 . . . . . Propulsion 1 | . . . . . 1 . . . . . Utility 4 | . . . . . 2 2 . . . . Weapon . | . . . . . . . . . . . Parts Attached 64 | . 5 5 . . 21 . 6 7 20 . Power 13 | . 1 1 . . 5 . 1 1 4 . Engine 9 | . 1 1 . . 5 . . 1 1 . Core 3 | . . . . . . . . . 3 . Reactor 1 | . . . . . . . 1 . . . Propulsion 16 | . 2 2 . . 7 . . 1 4 . Treads 5 | . 2 . . . . . . . 3 . Leg 9 | . . . . . 7 . . 1 1 . Wheel . | . . . . . . . . . . . Hover . | . . . . . . . . . . . Flight 2 | . . 2 . . . . . . . . Utility 20 | . . . . . 6 . 3 2 9 . Device 15 | . . . . . 6 . 3 2 4 . Storage . | . . . . . . . . . . . Processor . | . . . . . . . . . . . Hackware 5 | . . . . . . . . . 5 . Protection . | . . . . . . . . . . . Artifact . | . . . . . . . . . . . Weapon 15 | . 2 2 . . 3 . 2 3 3 . Energy Gun 3 | . . . . . . . 1 . 2 . Energy Cannon 1 | . . . . . 1 . . . . . Ballistic Gun 6 | . 2 2 . . . . . 1 1 . Ballistic Cannon 3 | . . . . . 2 . . 1 . . Launcher 2 | . . . . . . . 1 1 . . Special Weapon . | . . . . . . . . . . . Impact Weapon . | . . . . . . . . . . . Slashing Weapon . | . . . . . . . . . . . Piercing Weapon . | . . . . . . . . . . . Special Melee Weapon . | . . . . . . . . . . . Unidentified Prototypes 6 | . . . . . . . 3 2 1 . Corrupted Parts 2 | . . . . . . . . . 2 . System Corruption 2 | . . . . . . . . . 2 . Parts Lost 38 | . . 5 . . 6 . 1 3 23 . Power 10 | . . 1 . . 3 . . . 6 . Propulsion 8 | . . 2 . . 1 . 1 . 4 . Utility 11 | . . . . . 2 . . 3 6 . Weapon 9 | . . 2 . . . . . . 7 . Highest Loss Streak 8 | . . 2 . . 2 . 1 2 8 . To Critical Strikes . | . . . . . . . . . . . Average Backups 3 | 1 1 . 2 4 3 4 4 4 3 3 Power . | . . . . . . . . . . 1 Propulsion . | . . . . . . . . . . 2 Utility . | . . . 1 1 1 2 1 . . . Weapon 2 | 1 1 . 1 3 1 2 3 4 2 . Tool/Special . | . . . . . . . . . . . Unused Backups 6 | . . . . . 1 . 1 . 2 2 Power 2 | . . . . . 1 . . . . 1 Propulsion 2 | . . . . . . . . . 1 1 Utility 2 | . . . . . . . 1 . 1 . Weapon . | . . . . . . . . . . . Tool/Special . | . . . . . . . . . . . Average Slot Usage (%) 62 | . 59 52 52 42 82 61 68 85 47 23 Engine 7 | . 4 14 14 14 13 15 4 7 3 . Reactor 2 | . . . . . . . 6 7 1 . Treads 3 | . 27 8 . . . . . . 5 . Leg 11 | . . . . . 25 23 16 17 4 . Device 21 | . . . . . 30 15 32 38 16 7 Hackware 1 | . . . . . . . . . 2 15 Energy Gun 2 | . . . . . . . 1 . 5 . Energy Cannon 2 | . . . . . 5 7 6 . . . Ballistic Gun 4 | . 26 27 10 . 2 . . . 1 . Ballistic Cannon 3 | . . . . . 4 . . 12 2 . Launcher 1 | . . . . . . . . . 2 . Peak Build Rating 73 | . 5 5 6 6 55 44 68 73 60 14 Average Rating 38 | . 4 3 5 6 41 44 58 62 34 14 On Entrance 22 | . . 5 5 6 6 44 44 68 60 14 Naked Turns . | . . . . . . . . . . . Heaviest Build 51 | . 8 8 5 3 34 32 49 46 51 1 Greatest Support 75 | 3 40 40 8 8 54 36 36 44 75 3 Greatest Overweight (x) 6 | . . 2 . . 2 . 1 1 6 . Average Overweight (x) . | . . 1 . . . . . . . . Largest Inventory Capacity 5 | 5 5 5 5 5 5 5 5 5 5 5 Average Capacity 5 | 5 5 5 5 5 5 5 5 5 5 5 Most Carried 5 | 5 4 2 5 5 5 4 5 5 5 5 Average Carried 4 | 3 1 . 3 5 4 4 4 4 4 5 Final Capacity 5 | 5 5 5 5 5 5 5 5 5 5 5 Final Carried 5 | 5 1 1 5 5 4 4 5 5 5 5 Class Distribution -------------------- 55% | Mutant 23% | Scavenger-Mutant 11% | Skirmisher 9% | Scavenger-Skirmisher Dominant Class ---------------- Mutant | -10/Materials Mutant | -10/Mines Mutant | -10/Exiles Mutant | -9/Mines Mutant | -8/Materials Mutant | -7/Factory Mutant | -7/Waste Skirmisher | -7/Factory Scavenger-Mutant | -7/Garrison Mutant | -7/Factory Resources | -11 -10 -10 -10 -9 -8 -7 -7 -7 -7 -7 ----------- Run | Yrd Mat Min Exi Min Mat Fac Was Fac Gar Fac Matter Collected 2344 | 174 184 106 . . 526 . 77 236 1041 . Remotely . | . . . . . . . . . . . Salvage Created 5686 | . 250 146 . . 1884 . 1476 444 1486 . Parts 185 | . 12 12 . . 88 . 6 19 48 . Haulers Intercepted 5 | . 1 . . . 3 . . 1 . . Recyclers Shooed 2 | . 1 . . . . . . 1 . . Parts Field Recycled . | . . . . . . . . . . . Retrieved Matter . | . . . . . . . . . . . Parts Self-Destructed . | . . . . . . . . . . . Prevented . | . . . . . . . . . . . Kills | -11 -10 -10 -10 -9 -8 -7 -7 -7 -7 -7 ------- Run | Yrd Mat Min Exi Min Mat Fac Was Fac Gar Fac Combat Hostiles Destroyed 89 | . 4 10 . . 41 . 6 4 24 . Guns 20 | . 4 10 . . 1 . . . 5 . Cannons 27 | . . . . . 20 . 1 2 4 . AOE 32 | . . . . . 17 . . 2 13 . Classes Destroyed 19 | . 2 2 . . 10 . 1 3 1 . Worker 7 | . . . . . 6 . . 1 . . Builder 1 | . . . . . 1 . . . . . Tunneler 1 | . . . . . . . . 1 . . Hauler 5 | . 1 . . . 3 . . 1 . . Recycler 5 | . . . . . 3 . . 2 . . Mechanic 2 | . . . . . 2 . . . . . Operator 1 | . . . . . 1 . . . . . Watcher 3 | . . . . . 3 . . . . . Swarmer 14 | . . 6 . . 7 . . . 1 . Grunt 41 | . 4 . . . 21 . . 2 14 . Brawler 4 | . . . . . 4 . . . . . Duelist 1 | . . . . . 1 . . . . . Sentry 12 | . . . . . 7 . . . 5 . Specialist 1 | . . . . . . . . 1 . . Hunter 1 | . . . . . . . . . 1 . Programmer 4 | . . . . . . . . 1 3 . Heavy 1 | . . . . . 1 . . . . . Compactor 6 | . . . . . . . 6 . . . Assembled 4 | . . 4 . . . . . . . . Thug 2 | . . . . . . . . 1 1 . Savage 1 | . . . . . . . . . 1 . Best Kill Streak 21 | . 4 3 . . 21 . 3 2 4 . Combat Bots Only 14 | . 4 3 . . 14 . 3 2 4 . Max Kills in Single Turn 5 | . 1 1 . . 5 . 1 2 3 . Gunslinging . | . . . . . . . . . . . Exploded 3 | . . . . . 2 . . 2 3 . Melee . | . . . . . . . . . . . Uniques/NPCs Destroyed . | . . . . . . . . . . . Combat | -11 -10 -10 -10 -9 -8 -7 -7 -7 -7 -7 -------- Run | Yrd Mat Min Exi Min Mat Fac Was Fac Gar Fac Hostile Shots Fired 577 | . 45 40 . . 98 . . 21 372 1 Missed 240 | . 16 14 . . 31 . . 9 170 . Hits 337 | . 29 26 . . 67 . . 12 202 1 Melee 3 | . . 3 . . . . . . . . Projectile 334 | . 29 23 . . 67 . . 12 202 1 AOE 1 | . . 1 . . . . . . . . Critical Strikes 11 | . 1 . . . 5 . . 1 4 . Damage Taken 4819 | . 349 354 . . 1216 . 50 456 2376 18 Core 987 | . 54 49 . . 174 . 12 150 530 18 Absorbed by Shields 181 | . . . . . . . . . 181 . Regen/Repaired (Parts) 237 | . . . . . . . 140 97 . . Core Remaining (%) 75 | 100 . . . 58 68 . . . . . Volleys Fired 283 | . 27 23 . . 95 . 21 18 99 . Largest 2 | . 2 2 . . 2 . 2 2 2 . Hottest 145 | . 40 40 . . 100 . 128 100 145 . Shots Fired 457 | . 54 42 . . 140 . 22 34 165 . Gun 250 | . 54 42 . . 46 . 2 1 105 . Cannon 178 | . . . . . 94 . 19 33 32 . Launcher 29 | . . . . . . . 1 . 28 . Special . | . . . . . . . . . . . Kinetic 282 | . 54 42 . . 90 . . 32 64 . Thermal 146 | . . . . . 50 . 21 2 73 . Explosive 16 | . . . . . . . . . 16 . Electromagnetic 13 | . . . . . . . 1 . 12 . Robot Hit Streak 20 | . 19 5 . . 8 . 8 8 20 . Robot Miss Streak 4 | . 3 3 . . 3 . 1 4 4 . Penetration Max . | . . . . . . . . . . . Secondary Targets 4 | . 1 2 . . . . . . 1 . Max Gunslinging Chain 1 | . 1 1 . . . . . . 1 . Shots Hit Robots 269 | . 37 22 . . 80 . 12 17 101 . Core Hits 254 | . 13 14 . . 69 . 4 16 138 . Critical Kills 10 | . 1 . . . 4 . 5 . . . Critical Parts Destroyed 1 | . 1 . . . . . . . . . Critical Strikes 19 | . 2 . . . 6 . 5 3 3 . Meltdown 9 | . . . . . 4 . 5 . . . Destroy 2 | . 2 . . . . . . . . . Blast 8 | . . . . . 2 . . 3 3 . Melee Attacks . | . . . . . . . . . . . Impact . | . . . . . . . . . . . Slashing . | . . . . . . . . . . . Piercing . | . . . . . . . . . . . Sneak Attacks . | . . . . . . . . . . . Combat Hostiles . | . . . . . . . . . . . Follow-up Attacks . | . . . . . . . . . . . Damage Inflicted 14635 | . 379 220 . . 6750 . 1952 1077 4257 . Guns 2814 | . 379 220 . . 268 . . 12 1935 . Cannons 5972 | . . . . . 3196 . 1364 800 612 . Explosions 5849 | . . . . . 3286 . 588 265 1710 . Melee . | . . . . . . . . . . . Ramming . | . . . . . . . . . . . Kinetic 3376 | . 379 220 . . 873 . . 729 1175 . Thermal 9645 | . . . . . 5827 . 1952 348 1518 . Explosive 1041 | . . . . . 50 . . . 991 . Electromagnetic 573 | . . . . . . . . . 573 . Impact . | . . . . . . . . . . . Slashing . | . . . . . . . . . . . Piercing . | . . . . . . . . . . . Highest Corruption 5 | . . . . . . . . . 5 5 Average Corruption 3 | . . . . . . . . . 2 5 Corruption Purged . | . . . . . . . . . . . Corruption Blocked . | . . . . . . . . . . . Effects 29 | . . . . . . . . . 24 5 Message Errors 5 | . . . . . . . . . 5 . Matter Fused 6 | . . . . . . . . . 3 3 Heat Flow Errors 8 | . . . . . . . . . 7 1 Energy Discharges 5 | . . . . . . . . . 5 . Parts Fused 1 | . . . . . . . . . . 1 Data Loss (minor) 2 | . . . . . . . . . 2 . Misfires 2 | . . . . . . . . . 2 . Overload Shots . | . . . . . . . . . . . Overflow Damage 441 | . . . . . 363 . 14 37 27 . Projectiles 253 | . . . . . 211 . 2 37 3 . Explosions 188 | . . . . . 152 . 12 . 24 . Melee . | . . . . . . . . . . . Knockbacks 9 | . . . . . 1 . . 6 2 . Impact . | . . . . . . . . . . . Kinetic 9 | . . . . . 1 . . 6 2 . Secondary . | . . . . . . . . . . . Self-Inflicted Damage 622 | . . . . . 192 . 51 . 379 . Shots 24 | . . . . . 3 . 1 . 20 . Rammed . | . . . . . . . . . . . Targets Rammed . | . . . . . . . . . . . Kicked . | . . . . . . . . . . . Crushed . | . . . . . . . . . . . Highest Temperature 225 | . 12 8 . . 120 . 225 82 212 181 Average Temperature 53 | . 5 5 . . 39 . 68 26 62 130 Received Heat Transfer 1289 | . 216 . . . 432 . . 27 605 9 Effects 3 | . . . . . . . 1 . 2 . Energy Bleed 1 | . . . . . . . 1 . . . Interference 2 | . . . . . . . . . 2 . Siege Activations . | . . . . . . . . . . . Martial Activations . | . . . . . . . . . . . Shielding Activations . | . . . . . . . . . . . Robots Disrupted . | . . . . . . . . . . . Combat Hostiles . | . . . . . . . . . . . Robots Corrupted 2 | . . . . . . . . . 2 . Combat Hostiles 1 | . . . . . . . . . 1 . Parts Fried 4 | . . . . . . . . . 4 . Impact Corruptions . | . . . . . . . . . . . Robots Melted 10 | . . . . . 4 . 5 . 1 . Combat Hostiles 9 | . . . . . 3 . 5 . 1 . Parts Melted 11 | . . . . . 9 . 1 . 1 . Heat Transferred 10744 | . . . . . 5840 . 1600 320 2984 . Parts Sabotaged . | . . . . . . . . . . . Parts Stolen . | . . . . . . . . . . . Parts Stripped . | . . . . . . . . . . . Power Chain Reactions . | . . . . . . . . . . . Alert | -11 -10 -10 -10 -9 -8 -7 -7 -7 -7 -7 ------- Run | Yrd Mat Min Exi Min Mat Fac Was Fac Gar Fac Maximum Alert Level 5 | . . . . . 4 2 . 3 5 4 Low Security (%) 43 | 100 100 100 . 100 49 . 100 58 . . Level 1 . | . . . . . . . . 8 . . Level 2 9 | . . . . . 2 100 . 26 15 . Level 3 21 | . . . . . 41 . . 7 27 78 Level 4 16 | . . . . . 6 . . . 38 21 Level 5 7 | . . . . . . . . . 18 . High Security . | . . . . . . . . . . . Max Security . | . . . . . . . . . . . Peak Influence 2121 | . 70 89 . . 1307 590 199 736 2121 1108 Initial 1108 | . . 19 . . . 590 199 . 504 1108 Average 632 | . 18 20 . . 431 584 47 311 1204 1089 Influence Increases 4968 | . 97 140 . . 1734 . 50 1070 1877 . Destroy 0b10 Robot/C 1900 | . 80 120 . . 820 . . 340 540 . Destroy 0b10 Robot/NC 195 | . 5 . . . 95 . . 65 30 . Destroy Leader 368 | . 12 20 . . 192 . . 104 40 . Allied During Kill 398 | . . . . . . . . 365 33 . Select Force Hacks 30 | . . . . . . . . 30 . . Disable Machine 240 | . . . . . 150 . . 90 . . Anti-Garrison Action 1100 | . . . . . 150 . . . 950 . Destroy Structure 662 | . . . . . 327 . 50 76 209 . Lose Combat Pursuer 75 | . . . . . . . . . 75 . Influence Decreases 3900 | . 47 190 . . 435 729 620 350 486 1043 Entered New Map 2330 | . . 31 . . . 709 371 . 216 1003 Time Decay 1101 | . 47 120 . . 375 20 239 260 . 40 Lost Part 369 | . . 39 . . 60 . 10 30 230 . Lost Ally 100 | . . . . . . . . 60 40 . Squads Dispatched 14 | . . . . . 7 . . 6 . 1 Investigation 2 | . . . . . . . . 2 . . Extermination . | . . . . . . . . . . . Reinforcement 8 | . . . . . 4 . . 3 . 1 Assault 2 | . . . . . 2 . . . . . Garrison 2 | . . . . . 1 . . 1 . . Intercept . | . . . . . . . . . . . Searches Triggered . | . . . . . . . . . . . Construction Impeded 3 | . . . . . 2 . . 1 . . Haulers Reinforced . | . . . . . . . . . . . Active Scanning Responses . | . . . . . . . . . . . Cargo Convoy Interrupts . | . . . . . . . . . . . Stealth | -11 -10 -10 -10 -9 -8 -7 -7 -7 -7 -7 --------- Run | Yrd Mat Min Exi Min Mat Fac Was Fac Gar Fac Distress Signals 10 | . 2 1 . . 5 . . 1 . 1 Communications Jammed . | . . . . . . . . . . . Distress Signals . | . . . . . . . . . . . Times Spotted 144 | . 9 16 . . 54 1 6 16 36 6 Peak Tracking Total 10 | . 5 10 . . 9 1 2 4 5 3 Tactical Retreats 5 | . . 2 . . . . . . 3 . Traps | -11 -10 -10 -10 -9 -8 -7 -7 -7 -7 -7 ------- Run | Yrd Mat Min Exi Min Mat Fac Was Fac Gar Fac Traps Triggered 7 | . . . . . . 1 . 1 4 1 Indirectly 3 | . . . . . . . . . 3 . Trap Hack Attempts . | . . . . . . . . . . . Triggered . | . . . . . . . . . . . Disarmed . | . . . . . . . . . . . Reprogrammed . | . . . . . . . . . . . Reused . | . . . . . . . . . . . Traps Extracted . | . . . . . . . . . . . Installed . | . . . . . . . . . . . Triggered . | . . . . . . . . . . . Machines | -11 -10 -10 -10 -9 -8 -7 -7 -7 -7 -7 ---------- Run | Yrd Mat Min Exi Min Mat Fac Was Fac Gar Fac Machines Disabled 22 | . . . . . 11 . . 6 5 . Max in Single Turn 2 | . . . . . 2 . . 1 1 . Garrison Access 2 | . . . . . 1 . . . . 1 Garrison Relay 5 | . . . . . . . . . 5 . Phase Generator 1 | . . . . . . . . . 1 . Machines Repaired . | . . . . . . . . . . . Machines Dismantled . | . . . . . . . . . . . Machines Sabotaged . | . . . . . . . . . . . Overloaded Fab Kills . | . . . . . . . . . . . Hacking | -11 -10 -10 -10 -9 -8 -7 -7 -7 -7 -7 --------- Run | Yrd Mat Min Exi Min Mat Fac Was Fac Gar Fac Machines Accessed 7 | . . . 2 . . . . 2 1 2 Terminals 2 | . . . . . . . . . 1 1 Fabricators . | . . . . . . . . . . . Repair Stations . | . . . . . . . . . . . Recycling Units 1 | . . . . . . . . 1 . . Scanalyzers . | . . . . . . . . . . . Garrison Access 2 | . . . . . . . . 1 . 1 Total Hacks 33 | . . . 24 . . . . 5 2 2 Successful 27 | . . . 24 . . . . 2 . 1 Failed 6 | . . . . . . . . 3 2 1 Catastrophic . | . . . . . . . . . . . Database Lockouts . | . . . . . . . . . . . Manual 3 | . . . 1 . . . . 2 . . Terminals 3 | . . . . . . . . . 2 1 Fabricators . | . . . . . . . . . . . Repair Stations . | . . . . . . . . . . . Recycling Units 2 | . . . . . . . . 2 . . Scanalyzers . | . . . . . . . . . . . Garrison Access 4 | . . . . . . . . 3 . 1 Terminal Hacks 24 | . . . 24 . . . . . . . Record 23 | . . . 23 . . . . . . . Proto ID Catalog 1 | . . . 1 . . . . . . . Fabricator Hacks . | . . . . . . . . . . . Repair Station Hacks . | . . . . . . . . . . . Recycling Unit Hacks . | . . . . . . . . . . . Scanalyzer . | . . . . . . . . . . . Garrison Access Hacks 2 | . . . . . . . . 1 . 1 Unlock Access 1 | . . . . . . . . 1 . . Seal Access 1 | . . . . . . . . . . 1 Unauthorized Hacks 1 | . . . . . . . . 1 . . Terminals . | . . . . . . . . . . . Fabricators . | . . . . . . . . . . . Repair Stations . | . . . . . . . . . . . Recycling Units 1 | . . . . . . . . 1 . . Tunnel 1 | . . . . . . . . 1 . . Scanalyzers . | . . . . . . . . . . . Garrison Access . | . . . . . . . . . . . Data Cores Recovered . | . . . . . . . . . . . Used . | . . . . . . . . . . . Hacking Detections 2 | . . . . . . . . . 1 1 Full Trace Events . | . . . . . . . . . . . Feedback Events . | . . . . . . . . . . . Feedback Blocked . | . . . . . . . . . . . Robot Schematics Acquired . | . . . . . . . . . . . Robots Built . | . . . . . . . . . . . Authchips . | . . . . . . . . . . . Time . | . . . . . . . . . . . Total Robot Build Rating . | . . . . . . . . . . . Part Schematics Acquired . | . . . . . . . . . . . Parts Built . | . . . . . . . . . . . Authchips . | . . . . . . . . . . . Time . | . . . . . . . . . . . Total Part Build Rating . | . . . . . . . . . . . Parts Repaired . | . . . . . . . . . . . Time . | . . . . . . . . . . . Parts Recycled . | . . . . . . . . . . . Recycled Matter . | . . . . . . . . . . . Retrieved Matter . | . . . . . . . . . . . Retrieved Components . | . . . . . . . . . . . Parts Scanalyzed . | . . . . . . . . . . . Part Schematics Acquired . | . . . . . . . . . . . Parts Damaged . | . . . . . . . . . . . Bothacking | -11 -10 -10 -10 -9 -8 -7 -7 -7 -7 -7 ------------ Run | Yrd Mat Min Exi Min Mat Fac Was Fac Gar Fac Used RIF Installer 1 | . . . . . . . . . 1 . Robots Hacked . | . . . . . . . . . . . Non-combat . | . . . . . . . . . . . Combat . | . . . . . . . . . . . Robot Hacks Applied . | . . . . . . . . . . . Relay Couplers Released 19 | . . . . . 1 . . . 18 . Machine Destruction 19 | . . . . . 1 . . . 18 . Attached 5 | . . . . . . . . . 5 . Fabnet Peak Effective % . | . . . . . . . . . . . Robots Rewired . | . . . . . . . . . . . Allies Hacked 1 | . . . . . . . . 1 . . Hacks Repelled . | . . . . . . . . . . . Allies | -11 -10 -10 -10 -9 -8 -7 -7 -7 -7 -7 -------- Run | Yrd Mat Min Exi Min Mat Fac Was Fac Gar Fac Total Allies 19 | . . . . . . . 19 . . . Largest Group 19 | . . . . . . . 19 19 4 . Highest-Rated Group 465 | . . . . . . . 465 465 114 . Highest-Rated Ally 35 | . . . . . . . 35 35 32 . Total Orders . | . . . . . . . . . . . Ally Attacks 74 | . . . . . . . . 66 8 . Total Damage 4120 | . . . . . . . . 3733 387 . Kills 34 | . . . . . . . . 31 3 . Allies Corrupted . | . . . . . . . . . . . Allies Melted . | . . . . . . . . . . . Intel | -11 -10 -10 -10 -9 -8 -7 -7 -7 -7 -7 ------- Run | Yrd Mat Min Exi Min Mat Fac Was Fac Gar Fac Active Infowar (turns) 1471 | . . . . . . . 405 598 468 . Sensors 1471 | . . . . . . . 405 598 468 . Robot Analysis Total . | . . . . . . . . . . . Derelict Logs Recovered 2 | . . 2 . . . . . . . . Drone Launches . | . . . . . . . . . . . Drone Recoveries . | . . . . . . . . . . . Exploration | -11 -10 -10 -10 -9 -8 -7 -7 -7 -7 -7 ------------- Run | Yrd Mat Min Exi Min Mat Fac Was Fac Gar Fac Turns Passed 7043 | 20 199 476 147 26 1513 40 1169 598 2763 92 Spaces Moved 4354 | 30 74 308 392 53 1017 44 580 291 1382 183 Core 465 | 30 . 166 . . . . . . 86 183 Treads 1163 | . 74 75 . . . . . . 1014 . Legs 2191 | . . . . . 994 44 580 291 282 . Wheels . | . . . . . . . . . . . Hover . | . . . . . . . . . . . Flight 535 | . . 67 392 53 23 . . . . . Fastest Speed 37 | 50 160 37 37 37 37 90 90 100 50 50 Average Speed 132 | 50 160 129 37 37 114 90 177 174 162 50 Slowest Speed 350 | 50 160 160 37 37 260 90 180 183 350 50 Overloaded Moves . | . . . . . . . . . . . Propulsion Burnouts . | . . . . . . . . . . . Robots Hopped 1 | . . . . 1 . . . . . . Potential Cave-ins 11 | . . . . . . . . . 11 . Cave-ins Triggered 1 | . . . . . . . . . 1 . Exploration Rate (%) 45 | 3 23 71 88 18 87 3 95 13 87 8 Regions Visited 10 Branch Regions 3 Pre-discovered Areas 2 | . . . 1 . . . . 1 . . Known Exits Taken 1 | . . . . . . . . 1 . . Unknown Exits Taken 6 | 1 1 1 1 1 1 . . . . . Scrap Searched . | . . . . . . . . . . . Spaces Dug 129 | . . . . . 46 . 13 . 70 . Terrain Destroyed 908 | . . . . . 479 . 105 34 290 . Melee . | . . . . . . . . . . . Projectile 46 | . . . . . 33 . 5 5 3 . AOE 862 | . . . . . 446 . 100 29 287 . Terrain Rammed . | . . . . . . . . . . . Walls Destroyed . | . . . . . . . . . . . Machines Disabled . | . . . . . . . . . . . Actions | -11 -10 -10 -10 -9 -8 -7 -7 -7 -7 -7 --------- Run | Yrd Mat Min Exi Min Mat Fac Was Fac Gar Fac Total 5118 | 34 106 348 394 57 1210 44 684 349 1709 183 Wait 268 | . . 8 . 6 38 . 66 24 126 . Move 4344 | 29 73 307 391 50 1016 44 579 291 1381 183 Hop 1 | . . . . 1 . . . . . . Pick Up 57 | 5 1 5 1 . 17 . 4 1 23 . Fast Attach 29 | . . . . . 9 . 4 7 9 . Attach 61 | . 5 5 . . 18 . 3 2 28 . Detach 17 | . . . 2 . 2 . 1 1 11 . Swap 1 | . . . . . . . . . 1 . Drop 44 | . . . . . 15 . 6 5 18 . Fire 283 | . 27 23 . . 95 . 21 18 99 . Melee . | . . . . . . . . . . . Ram . | . . . . . . . . . . . Kick . | . . . . . . . . . . . Crush . | . . . . . . . . . . . Escape Stasis 13 | . . . . . . . . . 13 . Rewire . | . . . . . . . . . . . Trap . | . . . . . . . . . . . Miscellaneous . | . . . . . . . . . . . Route ------- -11/Scrapyard -10/Materials -10/Mines (discovered 2 exits: [*Mat] / *Exi) -10/Exiles -9/Mines -8/Materials (discovered 3 exits: [*Fac x3]) -7/Factory -7/Waste -7/Factory -7/Garrison (discovered 4 exits: *Fac x4) -7/Factory History --------- Turn | Location | Event 10 | -11/Scrapyard | Discovered new exit (range 16) 21 | -11/Scrapyard | Entered Materials 63 | -10/Materials | Discovered new exit (range 14) 220 | -10/Materials | Entered Mines 227 | -10/Mines | Learned Materials garrison access intel 300 | -10/Mines | Discovered new exit (range 12) 310 | -10/Mines | Build established: Mutant 315 | -10/Mines | Assembled infested the area 320 | -10/Mines | Assisted by a Guerilla fighting off Assembled 594 | -10/Mines | Found a damaged Exp. Sensor Array with a note attached 598 | -10/Mines | Found Prototype Device 665 | -10/Mines | Learned Materials security intel 694 | -10/Mines | Deemed a non-threat by the Exiles lab entrance 694 | -10/Mines | Discovered new exit (range 5) 696 | -10/Mines | Entered Exiles 706 | -10/Exiles | Met 8R-AWN 712 | -10/Exiles | Met EX-HEX 722 | -10/Exiles | Met EX-BIN 727 | -10/Exiles | Aligned with FarCom system 728 | -10/Exiles | Given EX-Vault access code 736 | -10/Exiles | Opened EX-Vault 741 | -10/Exiles | Found YOLO Cannon 750 | -10/Exiles | Warned to stay clear of 0b10 Research branches 776 | -10/Exiles | Met EX-DEC 783 | -10/Exiles | Visited The Gauntlet 829 | -10/Exiles | Learned location of Zion (-7) 840 | -10/Exiles | Discovered new exit (range 10) 843 | -10/Exiles | Left Exiles lab with YOLO Cannon 843 | -10/Exiles | Entered Mines 848 | -9/Mines | Met a Derelict bent on vengeance 858 | -9/Mines | Discovered new exit (range 7) 869 | -9/Mines | Entered Materials 869 | -8/Materials | Evolved 4 slots: Power x1, Propulsion x1, Utility x2 871 | -8/Materials | Loaded intel: 1 garrison access location 1534 | -8/Materials | Discovered new exit (range 7) 1559 | -8/Materials | Garrison activated, responded to threat 1679 | -8/Materials | Destroyed 14 combat bots 2214 | -8/Materials | Discovered new exit (range 3) 2342 | -8/Materials | Discovered new exit (range 10) 2356 | -8/Materials | Destroyed 7 combat bots 2382 | -8/Materials | Entered Factory 2382 | -7/Factory | Evolved 2 slots: Utility x2 2422 | -7/Factory | Manually triggered Chute Trap 2422 | -7/Factory | Sucked down chute 2422 | -7/Factory | Entered Waste 2445 | -7/Waste | Spotted C-40 Crusher 2452 | -7/Waste | Destroyed C-40 Crusher 2500 | -7/Waste | Spotted C-40 Crusher 2505 | -7/Waste | Destroyed C-40 Crusher 2515 | -7/Waste | Spotted C-40 Crusher 2523 | -7/Waste | Destroyed C-40 Crusher 2547 | -7/Waste | Spotted C-40 Crusher 2573 | -7/Waste | Destroyed C-40 Crusher 2583 | -7/Waste | Spotted C-40 Crusher 2593 | -7/Waste | Destroyed C-40 Crusher 2594 | -7/Waste | Spotted C-40 Crusher 2606 | -7/Waste | Destroyed C-40 Crusher 2776 | -7/Waste | Discovered new exit (range 13) 3012 | -7/Waste | Warlord forces began an assault 3186 | -7/Waste | Identified Exp. Sensor Array 3469 | -7/Waste | Build established: Skirmisher 3591 | -7/Waste | Entered Factory 3591 | -7/Factory | Accompanied by 19 allies 3646 | -7/Factory | Lost 8 allies 3661 | -7/Factory | Found Prototype Launcher 3661 | -7/Factory | Identified Rocket Array 4029 | -7/Factory | Lost 3 allies 4132 | -7/Factory | Garrison activated, responded to threat 4174 | -7/Factory | Identified exit to Garrison 4175 | -7/Factory | Lost 3 allies 4189 | -7/Factory | Entered Garrison 4189 | -7/Garrison | Accompanied by 4 allies 4278 | -7/Garrison | Triggered checkpoint 4304 | -7/Garrison | Build established: Scavenger-Skirmisher 4389 | -7/Garrison | Triggered checkpoint 4551 | -7/Garrison | Garrison Relay disabled 4635 | -7/Garrison | Triggered checkpoint 4635 | -7/Garrison | Triggered checkpoint 4639 | -7/Garrison | Triggered checkpoint 4672 | -7/Garrison | Lost 3 allies 4692 | -7/Garrison | Lost 8 parts (2p2n2u2w) 4808 | -7/Garrison | Core integrity fell below 50% 4947 | -7/Garrison | Build established: Mutant 5213 | -7/Garrison | Triggered checkpoint 5384 | -7/Garrison | Build established: Scavenger-Mutant 5518 | -7/Garrison | Discovered new exit (range 14) 5655 | -7/Garrison | Triggered checkpoint 5722 | -7/Garrison | Installed Relay Interface Framework 5791 | -7/Garrison | Garrison Relay disabled 5826 | -7/Garrison | Discovered new exit (range 12) 5954 | -7/Garrison | Discovered new exit (range 14) 6033 | -7/Garrison | Triggered checkpoint 6079 | -7/Garrison | Garrison Relay disabled 6252 | -7/Garrison | Garrison Relay disabled 6483 | -7/Garrison | Crushed by falling debris 6511 | -7/Garrison | Core integrity fell below 20% 6515 | -7/Garrison | Phase Generator disabled 6732 | -7/Garrison | Garrison Relay disabled 6770 | -7/Garrison | Build established: Mutant 6949 | -7/Garrison | Triggered checkpoint 6951 | -7/Garrison | Discovered new exit (range 3) 6952 | -7/Garrison | Entered Factory 7044 | -7/Factory | Destroyed by G-47 Trooper with Particle Gun Last Messages --------------- Current location identified: Factory >>Seal Access door sealed. System corrupted: Matter fused (-5). Connecting with Terminal... W-25 Informer sends out distress signal. ALERT: All DSF locations entering lockdown mode. System corrupted: Matter fused (-10). K-01 Serf cleans the Nuclear Reactor. System corrupted: Imp. Heat Sink fused. System corrupted: Matter fused (-9). O-24 Administrator: "IFF HANDSHAKE FAILED. SECURING TERMINAL." ALERT: Hostiles spotted, dispatching reinforcements to Terminal F010. System corrupted: Heat flow error (+215). Triggered Ambush Trap. B-48 Gladiator emerges from a hatch in the floor. G-47 Trooper emerges from a hatch in the floor. Map ----- +----------------------------------------------------+ | ?????????????????????????????????????????????????? | | ?????????????????????????????????????????????????? | | ?????????????????????????????????????????????????? | | ?????????????????????????????????????????????????? | | ??????????????? ?????????????????????????????????? | | ?????? ????" ?????????????????????????????????? | | ???? ???"" ?????????????????????????????????? | | ??# #???" ?????????????????????????????????? | | ??# #??? ?????????????????????????????????? | | ??# #??? ?????????????????????????????????? | | ??# #???#+?????#####???????????????????????? | | ??# ##### ###### #???????????????????????? | | ??# #????????? ???????????? | | ??# k #???????? ??????????? | | ??# #??????? ?????????? | | ??# ######## ?????????? | | ??# k ????????? | | ??# #### ????????? | | ??# #??# ????????? | | ???# ######+####### ????????? | | ???# # # ????????? | | #### + / # [????????? | | # # ????????? | | # / [ # ????????? | | # ! ! # g ######## ????????? | | # """" # b@ #????????? ??????????? | | ######## "" """" # #????????????????????? | | #??????# "" """" # #????????????????????? | | #??????# "T """??# b #????????????????????? | | #??????# "" / """??# #?????????Y??????????? | | #??????# "" """??# #????????????????????? | | #??????# ???+ ????????????????????? | | ###??????##########???#######????????????????????? | | ?????????????????????????????????????????????????? | | ?????????????????????????????????????????????????? | | ?????????????????????????????????????????????????? | | ?????????????????????????????????????????????????? | | | | | | | | | | | | | | | | | | | | | | | | | | | +----------------------------------------------------+ Best States ------------- Heat Dissipation 81 Energy Generation 32 Energy Capacity 515 Matter Stores 300 Matter Capacity 300 Sight Range 16 Robot Scan Range 20 Terrain Scan Density 10 Additional Mass Support 12 Weapon Cycling 30 Evasion (%) 62 Recoil Reduction 6 Energy Filtering 50 Relay Coupler Types 2 Relay Coupler Value 44 Item Schematics ----------------- None Robot Schematics ------------------ None Fabricated ------------ Nothing Repaired ---------- Nothing Alien Tech Used ----------------- None Achievements -------------- None Challenges ------------ None Game ------ Seed IntegritySegregatorDeflector Manual? 0 Play Time 00:47:36 Cumulative 190.1 hours Start 2025.10.18 @ 07:26:25 End 2025.10.18 @ 08:13:11 Sessions 1 Manual Loads 0 Difficulty Rogue Special Mode None Game No. 565 Rogue 564 Adventurer 1 Explorer 0 Win Type - Total 0 Types 0/0/0/0/0/0/0/0/0/0 Lore% 63 Gallery% 60 Achievement% 47 Wizard Run 0 Options --------- Layout 1 ASCII 0 Keyboard 0 Movement Mouse Keybinds 0 Fullscreen 1 Font 24/Smallcaps Map View 50x35 Zoom Use 0% Tactical HUD 0 Map Filters NONE Filters NONE Steam 1 RUN: 7196c4b2-79e1-4b41-adce-78e2dfddce8a